[Event "Romanian GP Final KO 2023"]
[Site "Alba Iulia"]
[Date "2023.12.05"]
[Round "3.1"]
[White "Obada, Ema"]
[Black "Ghimpu, Samuel-Timotei"]
[Result "0-1"]
[ECO "B45"]
[WhiteElo "2035"]
[BlackElo "2472"]
[Annotator "RC"]
[PlyCount "94"]
[EventDate "2023.12.04"]
[EventType "k.o."]
[EventCountry "ROU"]
[SourceTitle "playchess.com"]
[Source "ChessBase"]
[SourceQuality "1"]
[TimeControl "900+5"]

1. e4 {[%emt 0:00:02]} c5 {[%emt 0:00:09]} 2. Nf3 {[%emt 0:00:03]} e6 {[%emt 0:00:02]} 3. d4 {[%emt 0:00:03]} cxd4 {[%emt 0:00:02]} 4. Nxd4 {[%emt 0:00:02]} Nf6 {[%emt 0:00:01]} 5. Nc3 {[%emt 0:00:05]} Nc6 {[%emt 0:00:02]} 6. Nxc6 {[%emt 0:00:03]} bxc6 {[%emt 0:00:01]} 7. e5 {[%emt 0:00:02]} Nd5 {[%emt 0:00:02]} 8. Ne4 {[%emt 0:00:02]} Bb7 {[%emt 0:00:01]} 9. Be2 {[%emt 0:00:57]} c5 {[%emt 0:00:07]} 10. O-O {[%emt 0:00:08]} Qc7 {[%emt 0:00:01]} 11. Nd6+ {[%emt 0:00:09]} Bxd6 {[%emt 0:00:02]} 12. exd6 {[%emt 0:00:02]} Qc6 {[%emt 0:00:03]} 13. f3 {[%emt 0:00:05]} Qb6 {[%emt 0:00:01]} 14. c4 {[%emt 0:03:56]} Nb4 {[%emt 0:00:06]} 15. Be3 {[%emt 0:02:54]} a5 {[%emt 0:00:02]} 16. Qd2 {[%emt 0:00:34]} O-O {[%emt 0:00:03]} 17. f4 {[%emt 0:01:07]} Be4 {[%emt 0:00:06]} 18. Bf3 {[%emt 0:01:23]} f5 {[%emt 0:00:04]} 19. b3 {[%emt 0:00:38]} Bxf3 {[%emt 0:01:40]} 20. Rxf3 {[%emt 0:00:05]} a4 {[%emt 0:00:01]} 21. Rd1 {[%emt 0:00:29]} axb3 {[%emt 0:03:03]} 22. axb3 {[%emt 0:04:06]} Ra2 {[%emt 0:00:35]} 23. Qc3 {[%emt 0:00:00]} Rc2 {[%emt 0:00:07]} 24. Qe5 {[%emt 0:00:00]} Nc6 {[%emt 0:00:13]} 25. Qxc5 {[%emt 0:00:00]} Qxb3 {[%emt 0:00:01]} 26. Rc1 {[%emt 0:00:00]} Ra8 {[%emt 0:00:02]} 27. Rxc2 {[%emt 0:00:00]} Qxc2 {[%emt 0:00:03]} 28. h3 {[%emt 0:00:01]} Qb1+ {[%emt 0:00:51]} 29. Rf1 {[%emt 0:00:14]} Qd3 {[%emt 0:00:22]} 30. Bf2 {[%emt 0:00:14]} Ra5 {[%emt 0:00:35]} 31. Qb6 {[%emt 0:00:05]} Qxd6 {[%emt 0:00:03]} 32. c5 {[%emt 0:00:02]} Qd5 {[%emt 0:01:01]} 33. Qb7 {[%emt 0:00:10]} Ra2 {[%emt 0:00:24]} 34. Qb1 {[%emt 0:00:03]} Rd2 {[%emt 0:00:16]} 35. Qa1 {[%emt 0:00:08]} h6 {[%emt 0:00:06]} 36. Qa8+ {[%emt 0:00:03]} Kh7 {[%emt 0:00:01]} 37. Qa1 {[%emt 0:00:06]} Qe4 {[%emt 0:00:17]} 38. Qc3 {[%emt 0:00:04]} Rd3 {[%emt 0:00:24]} 39. Qc1 {[%emt 0:00:03]} Nd4 {[%emt 0:00:34]} 40. Bxd4 Qxd4+ {[%emt 0:00:00]} 41. Kh1 {[%emt 0:00:05]} Rd2 {[%emt 0:00:21]} 42. Rg1 {[%emt 0:00:15]} Qxf4 {[%emt 0:00:24]} 43. c6 {[%emt 0:00:00]} dxc6 {[%emt 0:00:02]} 44. Qxc6 {[%emt 0:00:02]} e5 {[%emt 0:00:06]} 45. Qb5 {[%emt 0:00:05]} e4 {[%emt 0:00:09]} 46. Rf1 {[%emt 0:00:04]} Rf2 {[%emt 0:00:02]} 47. Rxf2 {[%emt 0:00:12]} Qxf2 {[%emt 0:00:01]} 0-1

[Event "Romanian GP Final KO 2023"]
[Site "Alba Iulia"]
[Date "2023.12.05"]
[Round "3.2"]
[White "Lupulescu, Constantin"]
[Black "Serban, Cristian-Stefan"]
[Result "0-1"]
[ECO "B44"]
[WhiteElo "2581"]
[BlackElo "2332"]
[Annotator "TA"]
[PlyCount "96"]
[EventDate "2023.12.04"]
[EventType "k.o."]
[EventCountry "ROU"]
[SourceTitle "playchess.com"]
[Source "ChessBase"]
[SourceQuality "1"]
[TimeControl "900+5"]

{[%evp 13,96,3,3,6,2,-2,-8,-9,-10,-22,0,0,-13,-4,0,-16,-10,-13,-10,-11,-11,-12,-3,-18,-17,-56,-25,-39,-28,-31,0,0,91,98,81,72,62,16,61,27,31,26,34,0,14,0,0,-7,0,0,0,0,0,0,0,0,0,0,0,0,0,0,0,0,0,-2,-4,-26,-36,-30,8,8,8,8,8,0,0,-587,-547,-29978,-29979,-29977,-29976,-29979,295]} 1. e4 {[%emt 0:00:01]} c5 {[%emt 0:00:01]} 2. Nf3 {[%emt 0:00:01]} e6 {[%emt 0:00:01]} 3. d4 {[%emt 0:00:10]} cxd4 {[%emt 0:00:01]} 4. Nxd4 {[%emt 0:00:02]} Nf6 {[%emt 0:00:02]} 5. Bd3 {[%emt 0:00:35]} Nc6 {[%emt 0:00:01]} 6. Nxc6 {[%emt 0:00:02]} bxc6 {[%emt 0:00:02]} 7. c4 {[%emt 0:00:21]} d5 {[%emt 0:00:07]} 8. exd5 {[%emt 0:00:51] B44: Sicilian: Taimanov: 5 Nb5.} cxd5 {[%emt 0:00:09] [#]} 9. Nc3 $146 {[%emt 0:02:12]} ({Predecessor:} 9. O-O Be7 10. Nc3 O-O 11. Qe2 dxc4 12. Bxc4 Bb7 13. Be3 Qc7 14. Rfd1 Qc6 15. f3 Bc5 16. Bb5 Qb6 17. Bxc5 Qxc5+ 18. Qf2 Qg5 19. Rd6 Rfd8 20. Rxd8+ Rxd8 {0-1 Balint,V (2333)-Anisimov,P (2533) Budapest FS12 GM 2018 (7)}) 9... dxc4 {[%emt 0:00:34]} 10. Bxc4 {[%emt 0:00:05] The position is equal.} Qxd1+ {[%emt 0:00:04]} 11. Kxd1 {[%emt 0:00:42]} Bc5 {[%emt 0:00:06]} 12. Ke2 {[%emt 0:00:12]} Bb7 {[%emt 0:00:07]} 13. f3 {[%emt 0:00:17]} Ke7 {[%emt 0:00:05]} 14. Be3 {[%emt 0:00:07]} Rac8 {[%emt 0:00:11] [#] And now ...Bxe3 would win.} 15. Bb3 {[%emt 0:00:38]} Bxe3 {[%emt 0:00:23]} 16. Kxe3 {[%emt 0:00:02]} g5 {[%emt 0:00:02][%cal Bg7g5,Bg5g4][%mdl 32]} 17. Rhd1 {[%emt 0:02:10]} Rc5 {[%emt 0:00:02]} 18. Rd4 {[%emt 0:00:13]} h5 {[%emt 0:00:32]} 19. Bc2 {[%emt 0:03:21]} g4 {[%emt 0:01:38]} 20. Be4 {[%emt 0:00:21]} Nxe4 {[%emt 0:00:38]} 21. fxe4 {[%emt 0:00:12]} Bc6 {[%emt 0:00:40]} 22. Rc1 {[%emt 0:00:41][%cal Oc3d5] [#] Strongly threatening Nd5+!} Re5 {[%emt 0:01:13] Inhibits Nd5+.} (22... e5 $11 23. Rd2 Ke6) 23. Ne2 $16 {[%emt 0:00:38]} Rc8 {[%emt 0:00:34]} 24. Rdc4 {[%emt 0:01:00]} Kd7 {[%emt 0:00:06]} 25. Kf4 {[%emt 0:00:18]} (25. Nf4 $14) 25... Ra5 {[%emt 0:00:18]} 26. a3 {[%emt 0:00:40]} Bb7 $1 {[%emt 0:00:16]} 27. Rxc8 {[%emt 0:00:10]} Bxc8 $14 {[%emt 0:00:02][%mdl 4096] Endgame KRB-KRN} 28. g3 {[%emt 0:00:27]} Bb7 {[%emt 0:00:59]} 29. Rd1+ {[%emt 0:00:09]} Ke7 {[%emt 0:00:05]} 30. e5 {[%emt 0:00:32]} Bf3 {[%emt 0:00:20]} 31. Rd2 {[%emt 0:00:04]} Ra4+ {[%emt 0:00:04]} 32. Rd4 {[%emt 0:00:10]} Ra5 {[%emt 0:00:08]} 33. Nc3 {[%emt 0:00:10]} f6 {[%emt 0:01:34]} 34. exf6+ {[%emt 0:00:01]} Kxf6 {[%emt 0:00:02] Hoping for ...e5+.} 35. Ke3 {[%emt 0:00:01]} Re5+ {[%emt 0:00:38]} 36. Kf2 {[%emt 0:00:01]} Rf5 {[%emt 0:00:02]} 37. Ke3 {[%emt 0:00:04]} Ke5 {[%emt 0:00:12]} 38. Ra4 {[%emt 0:00:03]} Bd5 {[%emt 0:00:06]} 39. Nxd5 $11 {[%emt 0:00:22] KRN-KR} ({Reject} 39. Rxa7 Rf3+ 40. Ke2 Bc4+ 41. Ke1 Rf1+ 42. Kd2 Rf2+ 43. Ke3 Rxb2 $15) 39... Rf3+ {[%emt 0:00:02]} 40. Kd2 {[%emt 0:00:02]} exd5 {[%emt 0:00:01]} 41. Rxa7 {[%emt 0:00:22] KR-KR} Ke4 {[%emt 0:00:09]} 42. Re7+ {[%emt 0:00:00]} Kd4 {[%emt 0:00:01]} 43. Re2 {[%emt 0:00:00]} Kc4 {[%emt 0:00:01]} 44. Kc2 {[%emt 0:00:00]} d4 {[%emt 0:00:01][%cal Bd5d4,Bd4d3][%mdl 32] ( -> ...d3+)} 45. Rd2 {[%emt 0:00:08][%mdl 8192]} (45. Kd2 $11) 45... d3+ $19 {[%emt 0:00:04]} 46. Kb1 {[%emt 0:00:06]} Rf1+ {[%emt 0:00:19] Black mates.} 47. Ka2 {[%emt 0:00:01]} Kd4 {[%emt 0:00:02]} 48. b4 {[%emt 0:00:13]} Ke5 $4 {[%emt 0:06:20][%mdl 40960] Weighted Error Value: White=0.39/Black=0.10 (very precise) . Sensor Board Error (Ke4/e5)?} (48... Ke3 {mates} 49. Rb2 Rf2 50. Rxf2 Kxf2 51. b5 d2 52. b6 d1=Q 53. Kb2 Ke3 54. b7 Qd6 55. b8=B Qxb8+ 56. Kc3 Qb5 57. Kc2 Qc6+ 58. Kb2 Kd3 59. Kb3 Qb6+ 60. Ka4 Kc4 61. h4 Qb5#) 0-1

[Event "Romanian GP Final KO 2023"]
[Site "Alba Iulia"]
[Date "2023.12.05"]
[Round "3.2"]
[White "Gavrilescu, David"]
[Black "Petkov, Momchil"]
[Result "1/2-1/2"]
[ECO "B30"]
[WhiteElo "2534"]
[BlackElo "2499"]
[Annotator "TA"]
[PlyCount "35"]
[EventDate "2023.12.04"]
[EventType "k.o."]
[EventCountry "ROU"]
[SourceTitle "playchess.com"]
[Source "ChessBase"]
[SourceQuality "1"]
[TimeControl "900+5"]

{[%evp 11,21,33,33,33,31,38,49,38,54,35,30,19]} 1. e4 {[%emt 0:00:03]} c5 {[%emt 0:00:01]} 2. Nf3 {[%emt 0:00:03]} Nc6 {[%emt 0:00:02]} 3. Bb5 {[%emt 0:00:32]} Nf6 {[%emt 0:00:02]} 4. Nc3 {[%emt 0:00:17]} Qc7 {[%emt 0:00:03]} 5. O-O {[%emt 0:00:06]} Nd4 {[%emt 0:00:03]} 6. Re1 {[%emt 0:00:08]} a6 {[%emt 0:00:02]} 7. Bf1 {[%emt 0:00:03] B30: Sicilian: 2...Nc6 3 Bb5, lines without ...g6.} e5 {[%emt 0:00:05]} 8. d3 {[%emt 0:03:31]} Nxf3+ {[%emt 0:00:07]} 9. Qxf3 {[%emt 0:00:02]} d6 {[%emt 0:00:08]} 10. Bg5 {[%emt 0:00:14]} Be7 {[%emt 0:00:02]} 11. Bxf6 {[%emt 0:00:10] [#] Black got outplayed after the opening.   Weighted Error Value: White=0.05 (flawless) /Black=0.02 (flawless)} {Predecessor:} Bxf6 $146 12. Nd5 Qd8 13. a4 Bg5 14. a5 Bd2 15. Red1 Bxa5 16. c3 O-O 17. d4 cxd4 18. cxd4 {0-1 Tanenbaum,Z (2261)-Aaditya,D (2065) Titled Tuesday intern op 21st Mar Early blitz 2023 (9)} 1/2-1/2

[Event "Romanian GP Final KO 2023"]
[Site "Alba Iulia"]
[Date "2023.12.05"]
[Round "3.2"]
[White "Nanu, Costica-Ciprian"]
[Black "Ardelean, George-Catalin"]
[Result "1-0"]
[ECO "D32"]
[WhiteElo "2524"]
[BlackElo "2433"]
[Annotator "RC"]
[PlyCount "71"]
[EventDate "2023.12.04"]
[EventType "k.o."]
[EventCountry "ROU"]
[SourceTitle "playchess.com"]
[Source "ChessBase"]
[SourceQuality "1"]
[TimeControl "900+5"]

1. c4 {[%emt 0:00:02]} e6 {[%emt 0:00:10]} 2. Nf3 {[%emt 0:00:09]} d5 {[%emt 0:00:03]} 3. e3 {[%emt 0:00:04]} Nf6 {[%emt 0:00:15]} 4. b3 {[%emt 0:00:02]} c5 {[%emt 0:00:05]} 5. Bb2 {[%emt 0:00:05]} Nc6 {[%emt 0:00:01]} 6. cxd5 {[%emt 0:00:02]} exd5 {[%emt 0:00:02]} 7. Nc3 {[%emt 0:00:03]} Bd6 {[%emt 0:00:20]} 8. Be2 {[%emt 0:00:06]} O-O {[%emt 0:00:06]} 9. d4 {[%emt 0:00:02]} cxd4 {[%emt 0:00:25]} 10. Nxd4 {[%emt 0:00:01]} a6 {[%emt 0:00:18]} 11. O-O {[%emt 0:00:03]} Qe7 {[%emt 0:00:20]} 12. Na4 {[%emt 0:00:50]} Be6 {[%emt 0:02:43]} 13. Nxc6 {[%emt 0:00:17]} bxc6 {[%emt 0:00:02]} 14. Rc1 {[%emt 0:00:01]} Bd7 {[%emt 0:05:50]} 15. Nb6 {[%emt 0:00:07]} Ra7 {[%emt 0:00:03]} 16. Nxd7 {[%emt 0:00:15]} Qxd7 {[%emt 0:00:36]} 17. Bxf6 {[%emt 0:00:02]} gxf6 {[%emt 0:00:01]} 18. Bd3 {[%emt 0:00:02]} Kg7 {[%emt 0:01:39]} 19. Qh5 {[%emt 0:00:09]} Rh8 {[%emt 0:00:39]} 20. Bf5 {[%emt 0:00:16]} Qe8 {[%emt 0:00:02]} 21. Rc2 {[%emt 0:00:10]} Rc7 {[%emt 0:00:57]} 22. Rd1 {[%emt 0:00:17]} Qe5 {[%emt 0:00:28]} 23. g3 {[%emt 0:00:18]} Kf8 {[%emt 0:00:24]} 24. Kg2 {[%emt 0:00:16]} Rg8 {[%emt 0:00:45]} 25. Qxh7 {[%emt 0:00:27]} Rg5 {[%emt 0:00:08]} 26. f4 {[%emt 0:01:09]} Qxf5 {[%emt 0:00:21]} 27. Qxf5 {[%emt 0:00:01]} Rxf5 {[%emt 0:00:00]} 28. g4 {[%emt 0:00:01]} Bxf4 {[%emt 0:00:10]} 29. gxf5 {[%emt 0:00:07]} Bxe3 {[%emt 0:00:01]} 30. Rxd5 {[%emt 0:00:02]} c5 {[%emt 0:00:17]} 31. Rd8+ {[%emt 0:00:37]} Ke7 {[%emt 0:00:13]} 32. Ra8 {[%emt 0:00:03]} Bd4 {[%emt 0:00:04]} 33. Rxa6 {[%emt 0:00:03]} Rc8 {[%emt 0:00:02]} 34. Re2+ {[%emt 0:00:18]} Kd7 {[%emt 0:00:08]} 35. Kf3 {[%emt 0:00:12]} Rh8 {[%emt 0:00:13]} 36. Ke4 {[%emt 0:00:10]} 1-0

[Event "Romanian GP Final KO 2023"]
[Site "Alba Iulia"]
[Date "2023.12.05"]
[Round "3.2"]
[White "Ghimpu, Samuel-Timotei"]
[Black "Obada, Ema"]
[Result "1/2-1/2"]
[ECO "B15"]
[WhiteElo "2472"]
[BlackElo "2035"]
[Annotator "RC"]
[PlyCount "114"]
[EventDate "2023.12.04"]
[EventType "k.o."]
[EventCountry "ROU"]
[SourceTitle "playchess.com"]
[Source "ChessBase"]
[SourceQuality "1"]
[TimeControl "900+5"]

1. e4 {[%emt 0:00:04]} c6 {[%emt 0:00:01]} 2. d4 {[%emt 0:00:02]} d5 {[%emt 0:00:03]} 3. Nc3 {[%emt 0:00:12]} dxe4 4. Nxe4 {[%emt 0:00:01]} Nf6 {[%emt 0:00:05]} 5. Nxf6+ {[%emt 0:00:02]} exf6 {[%emt 0:00:01]} 6. Be3 {[%emt 0:00:02]} Bd6 {[%emt 0:00:04]} 7. Bd3 {[%emt 0:00:02]} O-O {[%emt 0:00:07]} 8. Ne2 {[%emt 0:00:02]} Re8 {[%emt 0:00:06]} 9. O-O {[%emt 0:00:03]} Nd7 {[%emt 0:00:04]} 10. Ng3 {[%emt 0:00:24]} g6 {[%emt 0:01:01]} 11. c4 {[%emt 0:00:03]} Nf8 {[%emt 0:00:14]} 12. Ne4 {[%emt 0:00:01]} Bc7 {[%emt 0:00:05]} 13. d5 {[%emt 0:00:01]} Bf5 {[%emt 0:01:26]} 14. Nc3 {[%emt 0:01:00]} Bxd3 {[%emt 0:00:46]} 15. Qxd3 {[%emt 0:00:05]} Nd7 {[%emt 0:00:32]} 16. dxc6 {[%emt 0:00:09]} bxc6 {[%emt 0:00:02]} 17. Rfd1 {[%emt 0:00:15]} Ne5 {[%emt 0:00:08]} 18. Qxd8 {[%emt 0:00:02]} Bxd8 {[%emt 0:01:42]} 19. b3 {[%emt 0:00:04]} Ba5 {[%emt 0:01:03]} 20. Na4 {[%emt 0:01:12]} Ng4 {[%emt 0:00:53]} 21. Bd4 {[%emt 0:00:08]} Re2 {[%emt 0:00:22]} 22. h3 {[%emt 0:00:23]} Ne5 {[%emt 0:00:04]} 23. Nc3 {[%emt 0:01:15]} Rc2 {[%emt 0:01:06]} 24. Ne4 {[%emt 0:00:06]} Kg7 {[%emt 0:01:24]} 25. Nxf6 {[%emt 0:00:08]} Kxf6 {[%emt 0:00:01]} 26. f4 {[%emt 0:00:01]} Bc3 {[%emt 0:00:11]} 27. fxe5+ {[%emt 0:00:08]} Ke6 {[%emt 0:00:02]} 28. Bxc3 {[%emt 0:00:09]} Rxc3 {[%emt 0:00:01]} 29. Rd6+ {[%emt 0:00:00]} Kxe5 {[%emt 0:00:05]} 30. Rxc6 {[%emt 0:00:02]} f5 {[%emt 0:00:30]} 31. Rd1 {[%emt 0:02:51]} Rc2 {[%emt 0:00:22]} 32. Rc7 {[%emt 0:00:47]} h5 {[%emt 0:00:16]} 33. a4 {[%emt 0:00:15]} Kf4 {[%emt 0:00:22]} 34. Rf1+ {[%emt 0:00:28]} Kg5 {[%emt 0:00:32]} 35. Rf2 {[%emt 0:01:30]} Rc1+ {[%emt 0:00:03]} 36. Rf1 {[%emt 0:00:07]} Rc3 {[%emt 0:01:18]} 37. Rf3 {[%emt 0:02:55]} Rc1+ {[%emt 0:01:15]} 38. Rf1 {[%emt 0:00:01]} Rc3 {[%emt 0:00:01]} 39. Rf3 {[%emt 0:00:01]} Rxf3 {[%emt 0:00:18]} 40. gxf3 {[%emt 0:00:01]} Rb8 {[%emt 0:00:01]} 41. Rxa7 {[%emt 0:00:11]} Rxb3 {[%emt 0:00:01]} 42. Kf2 {[%emt 0:00:24]} Kf4 {[%emt 0:00:02]} 43. Rg7 {[%emt 0:00:04]} Rb4 {[%emt 0:00:51]} 44. Rxg6 {[%emt 0:00:11]} Rxa4 {[%emt 0:00:04]} 45. c5 {[%emt 0:00:38]} Rc4 {[%emt 0:00:10]} 46. c6 {[%emt 0:00:05]} Rc2+ {[%emt 0:00:02]} 47. Ke1 {[%emt 0:00:00]} Kxf3 {[%emt 0:00:04]} 48. Kd1 {[%emt 0:00:16]} Rc5 {[%emt 0:00:03]} 49. Kd2 {[%emt 0:00:31]} Ke4 {[%emt 0:00:20]} 50. Re6+ {[%emt 0:00:13]} Kd5 {[%emt 0:00:30]} 51. Rf6 {[%emt 0:00:21]} Ke4 {[%emt 0:00:16]} 52. Re6+ {[%emt 0:00:04]} Kd5 {[%emt 0:00:08]} 53. Rf6 {[%emt 0:00:02]} Ke5 {[%emt 0:00:10]} 54. Rh6 {[%emt 0:00:02]} h4 {[%emt 0:00:03]} 55. Kd3 {[%emt 0:00:14]} Rc1 {[%emt 0:00:04]} 56. Kd2 {[%emt 0:00:10]} Rc4 {[%emt 0:00:05]} 57. Kd3 {[%emt 0:00:01]} Rc1 {[%emt 0:00:20]} 1/2-1/2

[Event "Romanian GP Final KO 2023"]
[Site "Alba Iulia"]
[Date "2023.12.05"]
[Round "3.2"]
[White "Toma, Radu-Cristian"]
[Black "Ciolacu, Alessia-Mihaela"]
[Result "1-0"]
[ECO "E33"]
[WhiteElo "2387"]
[BlackElo "2175"]
[Annotator "RC"]
[PlyCount "99"]
[EventDate "2023.12.04"]
[EventType "k.o."]
[EventCountry "ROU"]
[SourceTitle "playchess.com"]
[Source "ChessBase"]
[SourceQuality "1"]
[TimeControl "900+5"]

1. Nf3 {[%emt 0:00:04]} Nf6 {[%emt 0:00:02]} 2. c4 {[%emt 0:00:02]} e6 {[%emt 0:00:03]} 3. d4 {[%emt 0:00:41]} Bb4+ {[%emt 0:00:14]} 4. Bd2 {[%emt 0:00:07]} Qe7 {[%emt 0:00:04]} 5. Nc3 {[%emt 0:00:17]} O-O {[%emt 0:00:37]} 6. Qc2 {[%emt 0:00:38]} d6 {[%emt 0:02:08]} 7. a3 {[%emt 0:00:57]} Bxc3 {[%emt 0:00:04]} 8. Bxc3 {[%emt 0:00:02]} Nc6 {[%emt 0:00:15]} 9. e3 {[%emt 0:00:23]} a5 {[%emt 0:00:06]} 10. Be2 {[%emt 0:00:11]} e5 {[%emt 0:00:06]} 11. d5 {[%emt 0:00:20]} Nb8 {[%emt 0:00:15]} 12. b4 {[%emt 0:00:25]} axb4 {[%emt 0:01:54]} 13. axb4 {[%emt 0:00:02]} Rxa1+ {[%emt 0:00:03]} 14. Bxa1 {[%emt 0:00:02]} Na6 {[%emt 0:00:41]} 15. Bc3 {[%emt 0:00:37]} Bg4 {[%emt 0:00:57]} 16. O-O {[%emt 0:00:53]} Nd7 {[%emt 0:00:08]} 17. h3 {[%emt 0:00:43]} Bh5 {[%emt 0:00:37]} 18. Nxe5 {[%emt 0:01:06]} Nxe5 {[%emt 0:06:14]} 19. Bxh5 {[%emt 0:00:03]} Qh4 {[%emt 0:00:15]} 20. Bxe5 {[%emt 0:00:35]} Qxh5 {[%emt 0:00:45]} 21. Bb2 {[%emt 0:00:09]} Re8 {[%emt 0:00:10]} 22. e4 {[%emt 0:01:21]} Qg6 {[%emt 0:00:10]} 23. f3 {[%emt 0:00:03]} h5 {[%emt 0:00:29]} 24. Qa4 {[%emt 0:01:32]} Rd8 {[%emt 0:00:08]} 25. Qb5 {[%emt 0:00:12]} Qg5 {[%emt 0:00:31]} 26. Qxb7 {[%emt 0:01:24]} Qd2 {[%emt 0:00:05]} 27. Qxa6 {[%emt 0:00:28]} Qxb2 {[%emt 0:00:02]} 28. Qa7 {[%emt 0:00:21]} Qxb4 {[%emt 0:00:07]} 29. Qxc7 {[%emt 0:00:05]} Ra8 {[%emt 0:00:02]} 30. Qc6 {[%emt 0:00:31]} Rb8 {[%emt 0:00:15]} 31. Qc7 {[%emt 0:01:32]} Ra8 {[%emt 0:00:07]} 32. Qc6 {[%emt 0:00:06]} Rb8 {[%emt 0:00:03]} 33. Qc7 {[%emt 0:00:06]} Ra8 {[%emt 0:00:01]} 34. Qc6 {[%emt 0:00:02]} Ra2 {[%emt 0:00:01]} 35. Qe8+ {[%emt 0:00:03]} Kh7 {[%emt 0:00:02]} 36. Qxf7 {[%emt 0:00:05]} Qb6+ {[%emt 0:00:11]} 37. Kh1 {[%emt 0:00:09]} Kh6 {[%emt 0:00:06]} 38. Qf4+ {[%emt 0:00:34]} Kh7 {[%emt 0:00:04]} 39. e5 {[%emt 0:00:11]} Qb2 {[%emt 0:00:04]} 40. Qe4+ {[%emt 0:00:19]} Kh6 {[%emt 0:00:09]} 41. f4 {[%emt 0:00:05]} dxe5 {[%emt 0:00:08]} 42. fxe5 {[%emt 0:00:03]} Qd2 {[%emt 0:00:06]} 43. Qf4+ {[%emt 0:00:06]} Qxf4 {[%emt 0:00:03]} 44. Rxf4 {[%emt 0:00:03]} Re2 {[%emt 0:00:05]} 45. e6 {[%emt 0:00:04]} Kg6 {[%emt 0:00:03]} 46. h4 {[%emt 0:00:04]} Re5 {[%emt 0:00:04]} 47. Rd4 {[%emt 0:00:12]} Kf6 {[%emt 0:00:03]} 48. d6 {[%emt 0:00:03]} Re1+ {[%emt 0:00:11]} 49. Kh2 {[%emt 0:00:02]} Kxe6 {[%emt 0:00:03]} 50. d7 {[%emt 0:01:12]} 1-0

[Event "Romanian GP Final KO 2023"]
[Site "Alba Iulia"]
[Date "2023.12.05"]
[Round "3.2"]
[White "David, Alexandru-Vasile"]
[Black "Secheres, Adrian-Simion"]
[Result "1/2-1/2"]
[ECO "C55"]
[WhiteElo "2372"]
[BlackElo "2381"]
[Annotator "RC"]
[PlyCount "58"]
[EventDate "2023.12.04"]
[EventType "k.o."]
[EventCountry "ROU"]
[SourceTitle "playchess.com"]
[Source "ChessBase"]
[SourceQuality "1"]
[TimeControl "900+5"]

1. e4 {[%emt 0:00:02]} e5 {[%emt 0:00:04]} 2. Nf3 {[%emt 0:00:01]} Nc6 {[%emt 0:00:03]} 3. Bc4 {[%emt 0:00:02]} Nf6 {[%emt 0:00:04]} 4. d3 {[%emt 0:00:01]} Be7 {[%emt 0:00:06]} 5. O-O {[%emt 0:00:02]} O-O {[%emt 0:00:03]} 6. Nc3 {[%emt 0:00:02]} d6 {[%emt 0:00:10]} 7. a4 {[%emt 0:00:03]} a5 {[%emt 0:00:14]} 8. Nd5 {[%emt 0:00:29]} Nxd5 {[%emt 0:01:42]} 9. exd5 {[%emt 0:00:02]} Nd4 {[%emt 0:00:14]} 10. Nxd4 {[%emt 0:00:28]} exd4 {[%emt 0:00:02]} 11. Qf3 {[%emt 0:00:09]} Bf6 {[%emt 0:01:02]} 12. Re1 {[%emt 0:00:22]} Re8 {[%emt 0:00:38]} 13. Bd2 {[%emt 0:01:08]} Bd7 {[%emt 0:00:10]} 14. Bb5 {[%emt 0:00:24]} Rxe1+ {[%emt 0:00:36]} 15. Rxe1 {[%emt 0:00:40]} Bxb5 {[%emt 0:00:20]} 16. axb5 {[%emt 0:00:02]} Qd7 {[%emt 0:00:12]} 17. Qe4 {[%emt 0:00:01]} h5 {[%emt 0:01:46]} 18. Qf3 {[%emt 0:01:57]} Qxb5 {[%emt 0:00:18]} 19. Bc1 {[%emt 0:00:03]} Re8 {[%emt 0:00:07]} 20. Re4 {[%emt 0:01:46]} Rxe4 {[%emt 0:02:45]} 21. Qxe4 {[%emt 0:00:10]} Qc5 {[%emt 0:01:23]} 22. Qe8+ {[%emt 0:01:19]} Kh7 {[%emt 0:00:01]} 23. Qxf7 {[%emt 0:00:02]} Qxc2 {[%emt 0:00:01]} 24. Qxh5+ {[%emt 0:00:02]} Kg8 {[%emt 0:00:01]} 25. Qe8+ {[%emt 0:00:06]} Kh7 {[%emt 0:00:01]} 26. Qh5+ {[%emt 0:00:59]} Kg8 {[%emt 0:00:01]} 27. Qe8+ {[%emt 0:00:01]} Kh7 {[%emt 0:00:01]} 28. Qh5+ {[%emt 0:00:02]} Kg8 {[%emt 0:00:01]} 29. Qe8+ {[%emt 0:00:02]} Kh7 1/2-1/2